fUSD/lending_fUSD_20250110
["ID","MTS","AMOUNT","RATE_DAILY","PERIOD"]
[348390582,1736500243816,-500.0,0.00010269,2]
[348390583,1736500243825,-434.40653801,0.00010269,2]
[348390584,1736500243834,-500.0,0.00010269,2]
[348390585,1736500243843,-500.0,0.00010269,2]
[348390586,1736500243853,-500.0,0.00010269,2]
[348390587,1736500243862,-569.09006441,0.00010269,2]
[348390588,1736500243871,-514.57067198,0.00010269,2]
[348390589,1736500243881,-504.56988945,0.00010269,2]
[348390590,1736500243890,-513.36778183,0.00010269,2]
[348390591,1736500243899,-510.981724,0.00010269,2]
[348390592,1736500243908,-500.0,0.00010269,2]
[348390593,1736500243918,-500.0,0.00010269,2]
[348390594,1736500243927,-500.0,0.00010269,2]
[348390595,1736500243938,-500.0,0.00010269,2]
[348390596,1736500243947,-500.0,0.00010269,2]
[348390597,1736500243956,-500.0,0.00010269,2]
[348390598,1736500243965,-503.74,0.00010269,2]
[348390599,1736500243976,-595.25152967,0.00010269,2]
[348390600,1736500243986,-500.0,0.00010269,2]
[348390601,1736500243996,-500.0,0.00010269,2]
[348390602,1736500244006,-500.0,0.00010269,2]
[348390603,1736500244015,-500.0,0.00010269,2]
[348390604,1736500244025,-678.75,0.00010269,2]
[348390605,1736500244035,-500.0,0.00010269,2]
[348390606,1736500244044,-500.0,0.00010269,2]
[348390607,1736500244054,-500.0,0.00010269,2]
[348390608,1736500244064,-500.0,0.00010269,2]
[348390609,1736500244073,-500.0,0.00010269,2]
[348390610,1736500244082,-500.0,0.00010269,2]
[348390611,1736500244092,-500.0,0.00010269,2]
[348390612,1736500244101,-500.0,0.00010269,2]
[348390613,1736500244110,-500.0,0.00010269,2]
[348390614,1736500244119,-500.0,0.00010269,2]
[348390615,1736500244129,-500.0,0.00010269,2]
[348390616,1736500244138,-500.0,0.00010269,2]
[348390617,1736500244147,-500.0,0.00010269,2]
[348390618,1736500244157,-500.0,0.00010269,2]
[348390619,1736500244167,-500.0,0.00010269,2]
[348390620,1736500244176,-500.0,0.00010269,2]
[348390621,1736500244186,-500.0,0.00010269,2]
[348390622,1736500244196,-586.22,0.00010269,2]
[348390623,1736500244206,-679.11,0.00010269,2]
[348390624,1736500244215,-582.56,0.00010269,2]
[348390625,1736500244225,-426.11403526,0.00010269,2]
[348390626,1736500244234,-500.0,0.00010269,2]
[348390627,1736500244243,-500.0,0.00010269,2]
[348390628,1736500244253,-500.0,0.00010269,2]
[348390629,1736500244262,-500.0,0.00010269,2]
[348390630,1736500244272,-729.3,0.00010269,2]
[348390631,1736500244282,-563.4,0.00010269,2]
[348390632,1736500244291,-774.57,0.00010269,2]
[348390633,1736500244300,-706.5,0.00010269,2]
[348390634,1736500244310,-500.0,0.00010269,2]
[348390635,1736500244319,-500.0,0.00010269,2]
[348390636,1736500244329,-500.0,0.00010269,2]
[348390637,1736500244338,-2056.74,0.00010269,2]
[348390638,1736500244348,-500.0,0.00010269,2]
[348390639,1736500244357,-500.0,0.00010269,2]
[348390640,1736500244366,-891.86,0.00010269,2]
[348390641,1736500244376,-1197.74,0.00010269,2]
[348390642,1736500244386,-500.0,0.00010269,2]
[348390643,1736500244395,-500.0,0.00010269,2]
[348390644,1736500244405,-940.96,0.00010269,2]
[348390645,1736500244414,-1578.38,0.00010269,2]
[348390646,1736500244424,-500.0,0.00010269,2]
[348390647,1736500244434,-1107.84,0.00010269,2]
[348390648,1736500244444,-500.0,0.00010269,2]
[348390649,1736500244453,-500.0,0.00010269,2]
[348390650,1736500244463,-500.0,0.00010269,2]
[348390651,1736500244472,-664.6,0.00010269,2]
[348390652,1736500244482,-1029.02,0.00010269,2]
[348390653,1736500244492,-500.0,0.00010269,2]
[348390654,1736500244501,-1958.17,0.00010269,2]
[348390655,1736500244511,-1470.14,0.00010269,2]
[348390656,1736500244521,-2548.27,0.00010269,2]
[348390657,1736500244530,-6603.5,0.00010269,2]
[348390658,1736500244540,-1391.4,0.00010269,2]
[348390659,1736500244550,-500.0,0.00010269,2]
[348390660,1736500244560,-500.0,0.00010269,2]
[348390661,1736500244570,-500.0,0.00010269,2]
[348390662,1736500244580,-500.0,0.00010269,2]
[348390663,1736500244589,-792.05,0.00010269,2]
[348390664,1736500244599,-695.08,0.00010269,2]
[348390665,1736500244608,-885.13,0.00010269,2]
[348390666,1736500244618,-1000.7,0.00010269,2]
[348390667,1736500244628,-1553.42,0.00010269,2]
[348390668,1736500244638,-500.0,0.00010269,2]
[348390669,1736500244647,-809.08,0.00010269,2]
[348390670,1736500244658,-1191.43,0.00010269,2]
[348390671,1736500244667,-500.0,0.00010269,2]
[348390672,1736500244677,-1806.5,0.00010269,2]
[348390673,1736500244688,-2573.85,0.00010269,2]
[348390674,1736500244698,-500.0,0.00010269,2]
[348390675,1736500244708,-434.396806,0.00010269,2]
[348390676,1736500244718,-1506.65,0.00010269,2]
[348390677,1736500244728,-836.15,0.00010269,2]
[348390678,1736500244738,-736.48,0.00010269,2]
[348390679,1736500244747,-2801.83,0.00010269,2]
[348390680,1736500244757,-887.99,0.00010269,2]
[348390681,1736500244767,-550.55,0.00010269,2]
[348390682,1736500244776,-2110.21,0.00010269,2]
[348390683,1736500244790,-831.33,0.00010269,2]
[348390684,1736500244799,-986.48,0.00010269,2]
[348390685,1736500244809,-500.0,0.00010269,2]
[348390686,1736500244818,-433.582752,0.00010269,2]
[348390687,1736500244829,-1018.8,0.00010269,2]
[348390688,1736500244838,-719.34,0.00010269,2]
[348390689,1736500244848,-500.0,0.00010269,2]
[348390690,1736500244858,-771.41,0.00010269,2]
[348390691,1736500244867,-725.54,0.00010269,2]
[348390692,1736500244877,-500.0,0.00010269,2]
[348390693,1736500244887,-1412.92,0.00010269,2]
[348390694,1736500244896,-500.0,0.00010269,2]
[348390695,1736500244906,-1758.22,0.00010269,2]
[348390696,1736500244916,-837.48,0.00010269,2]
[348390697,1736500244925,-842.27,0.00010269,2]
[348390698,1736500244937,-1279.71,0.00010269,2]
[348390699,1736500244946,-582.33,0.00010269,2]
[348390700,1736500244956,-1085.96,0.00010269,2]
[348390701,1736500244966,-563.06,0.00010269,2]
[348390702,1736500244976,-500.0,0.00010269,2]
[348390703,1736500244986,-817.69,0.00010269,2]
[348390704,1736500244995,-1177.15,0.00010269,2]
[348390705,1736500245004,-757.84,0.00010269,2]
[348390706,1736500245014,-500.0,0.00010269,2]
[348390707,1736500245023,-1322.53,0.00010269,2]
[348390708,1736500245035,-3269.91,0.00010269,2]
[348390709,1736500245045,-500.0,0.00010269,2]
[348390710,1736500245054,-500.0,0.00010269,2]
[348390711,1736500245064,-962.73,0.00010269,2]
[348390712,1736500245074,-500.0,0.00010269,2]
[348390713,1736500245084,-500.0,0.00010269,2]
[348390714,1736500245094,-500.0,0.00010269,2]
[348390715,1736500245106,-807.38,0.00010269,2]
[348390716,1736500245116,-510.99,0.00010269,2]
[348390717,1736500245125,-986.68,0.00010269,2]
[348390718,1736500245135,-671.81,0.00010269,2]
[348390719,1736500245144,-500.0,0.0001027,2]
[348390720,1736500245154,-818.83,0.0001027,2]
[348390721,1736500245163,-500.0,0.0001027,2]
[348390722,1736500245173,-500.0,0.0001027,2]
[348390723,1736500245184,-1068.78,0.0001027,2]
[348390724,1736500245195,-2231.68,0.0001027,2]
[348390725,1736500245204,-579.53,0.0001027,2]
[348390726,1736500245214,-500.0,0.0001027,2]
[348390727,1736500245223,-779.52,0.0001027,2]
[348390728,1736500245233,-854.14,0.0001027,2]
[348390729,1736500245243,-761.22,0.0001027,2]
[348390730,1736500245252,-1070.48,0.0001027,2]
[348390731,1736500245262,-859.71,0.0001027,2]
[348390732,1736500245271,-855.15,0.0001027,2]
[348390733,1736500245280,-1327.36,0.0001027,2]
[348390734,1736500245290,-1140.93,0.0001027,2]
[348390735,1736500245299,-1385.89,0.0001027,2]
[348390736,1736500245308,-1284.44,0.0001027,2]
[348390737,1736500245319,-2300.59,0.0001027,2]
[348390738,1736500245328,-5548.96,0.0001027,2]
[348390739,1736500245339,-1000.0,0.0001027,2]
[348390740,1736500245349,-500.0,0.0001027,2]
[348390741,1736500245358,-1015.53,0.0001027,2]
[348390742,1736500245368,-999.61,0.0001027,2]
[348390743,1736500245377,-500.0,0.0001027,2]
[348390744,1736500245387,-2178.98,0.0001027,2]
[348390745,1736500245396,-656.42,0.0001027,2]
[348390746,1736500245406,-754.55,0.0001027,2]
[348390747,1736500245416,-500.0,0.00010272,2]
[348390748,1736500245425,-500.0,0.00010272,2]
[348390749,1736500245435,-500.0,0.00010272,2]
[348390750,1736500245445,-500.0,0.00010272,2]
[348390751,1736500245455,-500.0,0.00010272,2]
[348390752,1736500245464,-500.0,0.00010272,2]
[348390753,1736500245474,-503.60126264,0.00010272,2]
[348390754,1736500245484,-500.0,0.00010272,2]
[348390755,1736500245494,-500.0,0.00010272,2]
[348390756,1736500245504,-500.0,0.00010272,2]
[348390757,1736500245514,-500.0,0.00010272,2]
[348390758,1736500245524,-500.0,0.00010272,2]
[348390759,1736500245534,-278.75822791,0.00010272,2]
[348390760,1736500245544,-722.5,0.00010272,2]
[348390762,1736500245554,-500.0,0.00010272,2]
[348390764,1736500245564,-504.99007758,0.00010272,2]
[348390765,1736500245573,-647.0,0.00010272,2]
[348390766,1736500245583,-503.06829921,0.00010272,2]
[348390767,1736500245593,-500.0,0.00010272,2]
[348390768,1736500245603,-500.0,0.00010272,2]
[348390769,1736500245613,-847.26,0.00010272,2]
[348390770,1736500245623,-500.0,0.00010272,2]
[348390771,1736500245632,-357.97564183,0.00010272,2]
[348390772,1736500245642,-234.37274499,0.00010272,2]
[348390773,1736500245651,-517.29,0.00010272,2]
[348390774,1736500245661,-598.14,0.00010272,2]
[348390776,1736500245671,-500.0,0.00010272,2]
[348390778,1736500245681,-502.86025338,0.00010272,2]
[348390780,1736500245692,-747.48,0.00010272,2]
[348390781,1736500245701,-167.76730515,0.00010272,2]
[348390782,1736500245711,-500.0,0.00010272,2]
[348390783,1736500245721,-175.99131654,0.00010272,2]
[348390784,1736500245730,-266.96514489,0.00010272,2]
[348390785,1736500245740,-500.0,0.00010272,2]
[348390786,1736500245749,-500.0,0.00010272,2]
[348390787,1736500245759,-500.0,0.00010272,2]
[348390788,1736500245769,-500.0,0.00010272,2]
[348390789,1736500245779,-676.21,0.00010272,2]
[348390790,1736500245788,-519.68,0.00010272,2]
[348390791,1736500245797,-179.20864479,0.00010272,2]
[348390792,1736500245807,-500.0,0.00010272,2]
[348390793,1736500245816,-510.34220156,0.00010272,2]
[348390794,1736500245826,-684.89,0.00010272,2]
[348390795,1736500245835,-500.0,0.00010272,2]
[348390796,1736500245845,-678.52,0.00010272,2]
[348390797,1736500245855,-500.0,0.00010272,2]
[348390798,1736500245864,-500.0,0.00010272,2]
[348390799,1736500245874,-500.0,0.00010272,2]
[348390800,1736500245883,-500.0,0.00010272,2]
[348390801,1736500245893,-500.0,0.00010272,2]
[348390802,1736500245903,-513.86057102,0.00010272,2]
[348390803,1736500245912,-219.33726381,0.00010272,2]
[348390804,1736500245922,-500.0,0.00010272,2]
[348390805,1736500245932,-500.0,0.00010272,2]
[348390806,1736500245942,-500.0,0.00010272,2]
[348390807,1736500245952,-502.22,0.00010272,2]
[348390808,1736500245961,-500.0,0.00010272,2]
[348390809,1736500245971,-726.78,0.00010272,2]
[348390810,1736500245981,-282.42,0.00010272,2]
[348390811,1736500245991,-3609.52,0.00010272,2]
[348390812,1736500246001,-516.38,0.00010272,2]
[348390813,1736500246010,-500.0,0.00010272,2]
[348390814,1736500246020,-500.0,0.00010272,2]
[348390815,1736500246030,-515.94,0.00010272,2]
[348390816,1736500246039,-699.66,0.00010272,2]
[348390817,1736500246049,-500.0,0.00010272,2]
[348390818,1736500246059,-500.0,0.00010272,2]
[348390819,1736500246069,-780.6,0.00010272,2]
[348390820,1736500246079,-500.0,0.00010272,2]
[348390821,1736500246088,-500.0,0.00010272,2]
[348390822,1736500246098,-500.0,0.00010272,2]
[348390823,1736500246108,-500.0,0.00010272,2]
[348390824,1736500246118,-500.0,0.00010272,2]
[348390825,1736500246128,-618.37,0.00010272,2]
[348390826,1736500246137,-798.41,0.00010272,2]
[348390827,1736500246147,-500.0,0.00010272,2]
[348390828,1736500246157,-780.76,0.00010272,2]
[348390829,1736500246166,-500.0,0.00010272,2]
[348390830,1736500246176,-839.05,0.00010272,2]
[348390831,1736500246185,-504.19058219,0.00010272,2]
[348390832,1736500246195,-567.04,0.00010272,2]
[348390833,1736500246205,-500.0,0.00010272,2]
[348390834,1736500246214,-476.75614896,0.00010272,2]
[348390835,1736500246224,-500.0,0.00010272,2]
[348390836,1736500246234,-294.47,0.00010272,2]
[348390837,1736500246243,-500.0,0.00010272,2]
[348390838,1736500246253,-500.0,0.00010272,2]
[348390839,1736500246262,-722.12,0.00010272,2]
[348390840,1736500246271,-500.0,0.00010272,2]
[348390841,1736500246281,-500.0,0.00010272,2]
[348390842,1736500246291,-504.80713807,0.00010272,2]
[348390843,1736500246301,-727.02,0.00010272,2]
[348390844,1736500246310,-500.0,0.00010272,2]
[348390845,1736500246320,-799.7,0.00010272,2]
[348390846,1736500246330,-605.16754128,0.00010272,2]
[348390847,1736500246340,-573.06,0.00010272,2]
[348390848,1736500246350,-500.0,0.00010272,2]
[348390849,1736500246360,-541.26,0.00010272,2]
[348390850,1736500246369,-795.35,0.00010272,2]
[348390851,1736500246379,-587.58,0.00010272,2]
[348390852,1736500246389,-700.8,0.00010272,2]
[348390853,1736500246399,-662.09,0.00010272,2]
[348390854,1736500246409,-491.74730206,0.00010272,2]
[348390855,1736500246419,-500.0,0.00010272,2]
[348390856,1736500246428,-500.0,0.00010272,2]
[348390857,1736500246439,-1084.74,0.00010272,2]
[348390858,1736500246448,-624.1,0.00010272,2]
[348390859,1736500246457,-630.17,0.00010272,2]
[348390860,1736500246467,-500.0,0.00010272,2]
[348390861,1736500246477,-773.65,0.00010272,2]
[348390862,1736500246487,-941.95,0.00010272,2]
[348390863,1736500246497,-500.0,0.00010272,2]
[348390864,1736500246506,-606.38,0.00010272,2]
[348390865,1736500246516,-741.93,0.00010272,2]
[348390866,1736500246525,-3198.72,0.00010272,2]
[348390867,1736500246535,-502.4892401,0.00010272,2]
[348390868,1736500246545,-500.0,0.00010272,2]
[348390869,1736500246554,-500.0,0.00010272,2]
[348390870,1736500246564,-500.0,0.00010272,2]
[348390871,1736500246574,-924.89,0.00010272,2]
[348390872,1736500246583,-1983.31,0.00010272,2]
[348390873,1736500246593,-171.3543662,0.00010272,2]
[348390874,1736500246603,-500.0,0.00010272,2]
[348390875,1736500246612,-878.81,0.00010272,2]
[348390876,1736500246622,-2797.4,0.00010272,2]
[348390877,1736500246632,-660.89,0.00010272,2]
[348390878,1736500246641,-1243.22,0.00010272,2]
[348390879,1736500246651,-806.13,0.00010272,2]
[348390880,1736500246660,-500.0,0.00010272,2]
[348390881,1736500246669,-828.33,0.00010272,2]
[348390882,1736500246679,-1719.05,0.00010272,2]
[348390883,1736500246688,-2691.14,0.00010272,2]
[348390884,1736500246698,-874.32,0.00010272,2]
[348390885,1736500246708,-509.04147935,0.00010272,2]
[348390886,1736500246717,-714.58,0.00010272,2]
[348390887,1736500246726,-1219.22,0.00010272,2]
[348390888,1736500246735,-500.0,0.00010272,2]
[348390889,1736500246745,-500.0,0.00010272,2]
[348390890,1736500246754,-876.12,0.00010272,2]
[348390891,1736500246763,-605.63,0.00010272,2]
[348390892,1736500246773,-500.0,0.00010272,2]
[348390893,1736500246782,-590.85,0.00010272,2]
[348390894,1736500246792,-500.0,0.00010272,2]
[348390895,1736500246801,-2537.41,0.00010272,2]
[348390896,1736500246811,-500.0,0.00010272,2]
[348390897,1736500246820,-935.44,0.00010272,2]
[348390898,1736500246829,-704.75,0.00010272,2]
[348390899,1736500246839,-500.0,0.00010272,2]
[348390900,1736500246848,-575.78,0.00010272,2]
[348390901,1736500246858,-500.0,0.00010272,2]
[348390902,1736500246868,-635.55,0.00010272,2]
[348390903,1736500246877,-202.9797631,0.00010272,2]
[348390904,1736500246887,-500.0,0.00010272,2]
[348390905,1736500246896,-755.21,0.00010272,2]
[348390906,1736500246906,-925.95,0.00010272,2]
[348390907,1736500246915,-855.59,0.00010272,2]
[348390908,1736500246924,-1110.51,0.00010272,2]
[348390909,1736500246934,-500.0,0.00010272,2]
[348390910,1736500246943,-500.0,0.00010272,2]
[348390911,1736500246953,-500.0,0.00010272,2]
[348390912,1736500246962,-450.72,0.00010272,2]
[348390913,1736500246973,-500.0,0.00010272,2]
[348390914,1736500246982,-616.02,0.00010272,2]
[348390915,1736500246991,-675.22,0.00010272,2]
[348390916,1736500247001,-500.0,0.00010272,2]
[348390917,1736500247010,-500.0,0.00010272,2]
[348390918,1736500247020,-564.66,0.00010272,2]
[348390919,1736500247033,-2479.92,0.00010272,2]
[348390920,1736500247043,-657.44,0.00010272,2]
[348390921,1736500247052,-500.0,0.00010272,2]
[348390922,1736500247062,-1002.37,0.00010272,2]
[348390923,1736500247074,-500.0,0.00010272,2]
[348390924,1736500247084,-656.74,0.00010272,2]
[348390925,1736500247093,-519.3,0.00010272,2]
[348390926,1736500247316,-500.0,0.00010272,2]
[348390927,1736500247335,-500.0,0.00010272,2]
[348390928,1736500247344,-1068.96,0.00010272,2]
[348390929,1736500247354,-500.0,0.00010272,2]
[348390930,1736500247364,-500.0,0.00010272,2]
[348390931,1736500247373,-500.0,0.00010272,2]
[348390932,1736500247383,-500.0,0.00010272,2]
[348390933,1736500247393,-906.27,0.00010273,2]
[348390934,1736500247402,-778.52,0.00010273,2]
[348390935,1736500247411,-1187.66,0.00010273,2]
[348390936,1736500247421,-1232.26,0.00010273,2]
[348390937,1736500247430,-1701.47,0.00010273,2]
[348390938,1736500247441,-1021.49,0.00010273,2]
[348390939,1736500247451,-3374.65,0.00010273,2]
[348390940,1736500247460,-1512.01,0.00010273,2]
[348390941,1736500247470,-1115.60265148,0.00010283,2]
[348390942,1736500247479,-500.0,0.00010297,2]
[348390943,1736500247489,-500.0,0.00010297,2]
[348390944,1736500247499,-540.27,0.00010311,2]
[348390945,1736500247509,-3711.70775994,0.00010314,2]
[348390946,1736500247518,-550.39187634,0.00010325,2]
[348390947,1736500247527,-500.0,0.00010325,2]
[348390948,1736500247537,-500.0,0.00010352,2]
[348390949,1736500247546,-500.0,0.0001038,2]
[348390950,1736500247556,-500.0,0.00010407,2]
[348390951,1736500247565,-3711.70775994,0.00010417,2]
[348390952,1736500247575,-1070.68,0.0001043,2]
[348390953,1736500247585,-647.52873873,0.00010434,2]
[348390954,1736500247594,-3711.70775994,0.00010521,2]
[348390955,1736500247604,-500.0,0.00010543,2]
[348390956,1736500247614,-530.0,0.00010543,2]
[348390957,1736500247624,-500.0,0.00010543,2]
[348390958,1736500247634,-500.0,0.00010543,2]
[348390959,1736500247643,-500.0,0.00010543,2]
[348390960,1736500247653,-500.0,0.00010543,2]
[348390961,1736500247663,-624.9,0.00010543,2]
[348390962,1736500247672,-500.0,0.00010543,2]
[348390963,1736500247682,-500.0,0.00010543,2]
[348390964,1736500247692,-582.78,0.00010543,2]
[348390965,1736500247702,-500.0,0.00010543,2]
[348390966,1736500247711,-500.0,0.00010543,2]
[348390967,1736500247720,-500.0,0.00010543,2]
[348390968,1736500247729,-500.0,0.00010543,2]
[348390969,1736500247739,-500.0,0.00010543,2]
[348390970,1736500247748,-500.0,0.00010543,2]
[348390971,1736500247757,-500.0,0.00010543,2]
[348390972,1736500247767,-500.0,0.00010543,2]
[348390973,1736500247776,-500.0,0.00010543,2]
[348390974,1736500247786,-500.0,0.00010543,2]
[348390975,1736500247795,-500.0,0.00010543,2]
[348390976,1736500247804,-503.74,0.00010543,2]
[348390977,1736500247815,-500.0,0.00010543,2]
[348390978,1736500247824,-500.0,0.00010543,2]
[348390979,1736500247834,-500.0,0.00010543,2]
[348390980,1736500247843,-678.75,0.00010543,2]
[348390981,1736500247852,-500.0,0.00010543,2]
[348390982,1736500247862,-500.0,0.00010543,2]
[348390983,1736500247871,-500.0,0.00010543,2]
[348390984,1736500247880,-500.0,0.00010543,2]
[348390985,1736500247889,-500.0,0.00010543,2]
[348390986,1736500247898,-500.0,0.00010543,2]
[348390987,1736500247907,-500.0,0.00010543,2]
[348390988,1736500247916,-500.0,0.00010543,2]
[348390989,1736500247925,-500.0,0.00010543,2]
[348390990,1736500247934,-500.0,0.00010543,2]
[348390991,1736500247944,-500.0,0.00010543,2]
[348390992,1736500247953,-500.0,0.00010543,2]
[348390993,1736500247963,-500.0,0.00010543,2]
[348390994,1736500247974,-500.0,0.00010543,2]
[348390995,1736500247983,-500.0,0.00010543,2]
[348390996,1736500247993,-500.0,0.00010543,2]
[348390997,1736500248002,-500.0,0.00010543,2]
[348390998,1736500248011,-586.22,0.00010543,2]
[348390999,1736500248021,-679.11,0.00010543,2]
[348391000,1736500248030,-500.0,0.00010543,2]
[348391001,1736500248039,-500.0,0.00010543,2]
[348391002,1736500248048,-500.0,0.00010543,2]
[348391003,1736500248058,-500.0,0.00010543,2]
[348391004,1736500248067,-729.3,0.00010543,2]
[348391005,1736500248077,-563.4,0.00010543,2]
[348391006,1736500248086,-774.57,0.00010543,2]
[348391007,1736500248096,-706.5,0.00010543,2]
[348391008,1736500248105,-500.0,0.00010543,2]
[348391009,1736500248114,-500.0,0.00010543,2]
[348391010,1736500248124,-500.0,0.00010543,2]
[348391011,1736500248133,-2056.74,0.00010543,2]
[348391012,1736500248142,-500.0,0.00010543,2]
[348391013,1736500248152,-500.0,0.00010543,2]
[348391014,1736500248161,-891.86,0.00010543,2]
[348391015,1736500248170,-1197.74,0.00010543,2]
[348391016,1736500248180,-500.0,0.00010543,2]
[348391017,1736500248190,-500.0,0.00010543,2]
[348391018,1736500248199,-940.96,0.00010543,2]
[348391019,1736500248209,-1578.38,0.00010543,2]
[348391020,1736500248218,-500.0,0.00010543,2]
[348391021,1736500248227,-1107.84,0.00010543,2]
[348391022,1736500248237,-500.0,0.00010543,2]
[348391023,1736500248246,-500.0,0.00010543,2]
[348391024,1736500248256,-500.0,0.00010543,2]
[348391025,1736500248266,-664.6,0.00010543,2]
[348391026,1736500248275,-1029.02,0.00010543,2]
[348391027,1736500248285,-500.0,0.00010543,2]
[348391028,1736500248295,-1958.17,0.00010543,2]
[348391029,1736500248304,-1470.14,0.00010543,2]
[348391030,1736500248313,-2548.27,0.00010543,2]
[348391031,1736500248322,-6603.5,0.00010543,2]
[348391032,1736500248332,-1391.4,0.00010543,2]
[348391033,1736500248342,-500.0,0.00010543,2]
[348391034,1736500248351,-500.0,0.00010543,2]
[348391035,1736500248360,-500.0,0.00010543,2]
[348391036,1736500248370,-792.05,0.00010543,2]
[348391037,1736500248380,-695.08,0.00010543,2]
[348391038,1736500248390,-885.13,0.00010543,2]
[348391039,1736500248400,-1000.7,0.00010543,2]
[348391040,1736500248409,-1553.42,0.00010543,2]
[348391041,1736500248418,-500.0,0.00010543,2]
[348391042,1736500248427,-809.08,0.00010543,2]
[348391043,1736500248436,-1191.43,0.00010543,2]
[348391044,1736500248446,-500.0,0.00010543,2]
[348391045,1736500248456,-1806.5,0.00010543,2]
[348391046,1736500248465,-2573.85,0.00010543,2]
[348391047,1736500248475,-500.0,0.00010543,2]
[348391048,1736500248485,-434.396806,0.00010543,2]
[348391049,1736500248495,-1506.65,0.00010543,2]
[348391050,1736500248505,-836.15,0.00010543,2]
[348391051,1736500248514,-736.48,0.00010543,2]
[348391052,1736500248524,-2801.83,0.00010543,2]
[348391053,1736500248534,-887.99,0.00010543,2]
[348391054,1736500248543,-550.55,0.00010543,2]
[348391055,1736500248553,-2110.21,0.00010543,2]
[348391056,1736500248562,-831.33,0.00010543,2]
[348391057,1736500248572,-986.48,0.00010543,2]
[348391058,1736500248582,-626.30883317,0.00010543,2]
[348391059,1736500248591,-433.582752,0.00010543,2]
[348391060,1736500248601,-1018.8,0.00010543,2]
[348391061,1736500248611,-719.34,0.00010543,2]
[348391062,1736500248620,-500.0,0.00010543,2]
[348391063,1736500248629,-771.41,0.00010543,2]
[348391064,1736500248639,-725.54,0.00010543,2]
[348391065,1736500248648,-500.0,0.00010543,2]
[348391066,1736500248658,-1412.92,0.00010543,2]
[348391067,1736500248667,-500.0,0.00010543,2]
[348391068,1736500248677,-1758.22,0.00010543,2]
[348391069,1736500248687,-837.48,0.00010543,2]
[348391070,1736500248698,-842.27,0.00010543,2]
[348391071,1736500248708,-1279.71,0.00010543,2]
[348391072,1736500248718,-1085.96,0.00010543,2]
[348391073,1736500248728,-582.33,0.00010543,2]
[348391074,1736500248737,-563.06,0.00010543,2]
[348391075,1736500248747,-500.0,0.00010543,2]
[348391076,1736500248757,-817.69,0.00010543,2]
[348391077,1736500248766,-1177.15,0.00010543,2]
[348391078,1736500248776,-757.84,0.00010543,2]
[348391079,1736500248785,-500.0,0.00010543,2]
[348391080,1736500248795,-1322.53,0.00010543,2]
[348391081,1736500248804,-3269.91,0.00010543,2]
[348391082,1736500248814,-500.0,0.00010543,2]
[348391083,1736500248823,-500.0,0.00010543,2]
[348391084,1736500248832,-962.73,0.00010543,2]
[348391085,1736500248842,-500.0,0.00010543,2]
[348391086,1736500248851,-500.0,0.00010543,2]